fUSD/lending_fUSD_20240224
["ID","MTS","AMOUNT","RATE_DAILY","PERIOD"]
[315051779,1708785701686,250.0,0.00022476,2]
[315051780,1708785701716,387.9871,0.00022476,2]
[315051781,1708785755006,23890.0,0.00022406,2]
[315051782,1708785762852,500.0,0.00022442,2]
[315051783,1708785807153,500.0,0.00022442,2]
[315051784,1708785831648,806.06707613,0.0002241,2]
[315051785,1708785846465,4538.84,0.0002245,2]
[315051786,1708785847676,2000.0,0.0002245,2]
[315051787,1708785858800,789.5,0.00022466,2]
[315051788,1708785906327,250.0,0.00022466,2]
[315051789,1708785940053,200.0,0.00022466,2]
[315051790,1708786059846,650.91,0.00022483,2]
[315051791,1708786087689,155.0,0.000225,2]
[315051792,1708786114457,206.0,0.00021711,2]
[315051793,1708786140477,490.75,0.00020576,2]
[315051794,1708786202926,2737.09,0.00022441,2]
[315051796,1708786210985,750.0,0.000219,2]
[315051801,1708786232318,-213.11689176,0.0002256,2]
[315051802,1708786232327,-155.0,0.00022561,2]
[315051803,1708786232336,-200.0,0.00022573,2]
[315051804,1708786232505,-342.95,0.00022742,2]
[315051805,1708786232522,-162.22852879,0.00022756,2]
[315051806,1708786232531,-150.0,0.0002279,2]
[315051807,1708786232540,-188.96,0.00022791,2]
[315051808,1708786232549,-792.44,0.00022791,2]
[315051809,1708786232558,-342.95,0.00022804,2]
[315051810,1708786232567,-236.39093239,0.0002282,2]
[315051811,1708786232637,-187.46406762,0.0002282,2]
[315051812,1708786232646,-499.99,0.0002282,2]
[315051813,1708786232654,-800.04655175,0.0002283,2]
[315051815,1708786232665,-16045.34344825,0.0002283,2]
[315051817,1708786232674,-2067.03,0.0002283,2]
[315051818,1708786232684,-1124.83,0.0002283,2]
[315051819,1708786232693,-490.75,0.0002284,2]
[315051821,1708786232702,-342.95,0.00022867,2]
[315051823,1708786232710,-342.95,0.00022929,2]
[315051825,1708786232720,-166.15,0.00022949,2]
[315051827,1708786232729,-342.95,0.00022992,2]
[315051829,1708786232738,-298.75864967,0.00023,2]
[315051831,1708786232747,-177.78,0.00023,2]
[315051832,1708786232756,-162.22852879,0.00023046,2]
[315051833,1708786232764,-342.95,0.00023054,2]
[315051834,1708786232773,-342.95,0.00023116,2]
[315051835,1708786232783,-342.95,0.00023179,2]
[315051836,1708786232793,-167.3,0.00023209,2]
[315051837,1708786232802,-342.95,0.00023241,2]
[315051838,1708786232811,-342.95,0.00023303,2]
[315051839,1708786232821,-154.55,0.00023315,2]
[315051840,1708786233038,-162.22852879,0.00023337,2]
[315051841,1708786233049,-342.95,0.00023366,2]
[315051842,1708786233058,-342.95,0.00023428,2]
[315051843,1708786233067,-154.55,0.00023452,2]
[315051844,1708786233076,-342.95,0.00023491,2]
[315051845,1708786233085,-1261.46625146,0.00023522,2]
[315051846,1708786233098,-22005.54248232,0.00023522,2]
[315051847,1708786233110,-895.5,0.00023522,2]
[315051848,1708786233122,-638.51,0.00023522,2]
[315051849,1708786233135,-509.14459552,0.00023522,2]
[315051850,1708786233175,-485.33316,0.00023522,2]
[315051851,1708786233190,-7405.5035107,0.00023522,2]
[315051852,1708786233199,-177.78,0.00023548,2]
[315051853,1708786233209,-342.95,0.00023553,2]
[315051854,1708786233218,-2737.09,0.00023563,2]
[315051855,1708786233227,-154.55,0.00023589,2]
[315051856,1708786233236,-152.68,0.00023595,2]
[315051857,1708786233245,-342.95,0.00023615,2]
[315051858,1708786233254,-162.22852879,0.00023627,2]
[315051859,1708786233263,-342.95,0.00023678,2]
[315051860,1708786233272,-154.55,0.00023726,2]
[315051861,1708786233282,-342.95,0.0002374,2]
[315051862,1708786233291,-993.27925544,0.000238,2]
[315051863,1708786233306,-342.95,0.00023802,2]
[315051864,1708786233317,-154.55,0.00023864,2]
[315051865,1708786233326,-342.95,0.00023865,2]
[315051866,1708786233337,-191.45310092,0.0002389,2]
[315051867,1708786233346,-319.05341505,0.00023898,2]
[315051868,1708786233355,-63065.82966063,0.00023898,2]
[315051869,1708786233365,-229.9968778,0.00023899,2]
[315051870,1708786233377,-22043.75565067,0.000239,2]
[315051871,1708786233403,-10232.20000001,0.000239,2]
[315051872,1708786233417,-661.68277074,0.000239,2]
[315051873,1708786233429,-55141.73212385,0.000239,2]
[315051874,1708786238229,-858.31766847,0.000239,2]
[315051875,1708786238239,-3137.68233153,0.000239,2]
[315051878,1708786238287,-511.04,0.000239,2]
[315051879,1708786238347,-259.56812837,0.000239,2]
[315051880,1708786238406,-3332.97664968,0.000239,2]
[315052087,1708786240899,-20425.2,0.000239,2]
[315052140,1708786241578,-96912.05098162,0.000239,2]
[315052141,1708786241638,-255.44230823,0.000239,2]
[315052143,1708786243261,-264.1135013,0.000239,2]
[315052144,1708786243273,-335038.53414433,0.000239,2]
[315052145,1708786243283,-211.0,0.000239,2]
[315052146,1708786243293,-6527.62801739,0.00023901,2]
[315052147,1708786243303,-153.81127359,0.00023901,2]
[315052148,1708786243312,-280.50431176,0.00023901,2]
[315052149,1708786243321,-535.01415868,0.00023901,2]
[315052150,1708786243331,-162.22852879,0.00023918,2]
[315052151,1708786243340,-342.95,0.00023927,2]
[315052152,1708786243350,-197258.32731299,0.00024,2]
[315052153,1708786243362,-284316.83054829,0.00024,2]
[315052154,1708786243371,-154.55,0.00024001,2]
[315052155,1708786243380,-5000.0,0.00024092,2]
[315052156,1708786243390,-177.78,0.00024096,2]
[315052157,1708786243399,-266.3,0.0002411,2]
[315052158,1708786243410,-154.55,0.00024138,2]
[315052159,1708786243419,-1308.985,0.00024192,2]
[315052160,1708786243429,-2696.0,0.00024192,2]
[315052161,1708786243438,-955.0,0.00024192,2]
[315052162,1708786243448,-534.0,0.00024192,2]
[315052163,1708786243458,-217.0,0.00024192,2]
[315052164,1708786243467,-1301.937,0.00024192,2]
[315052165,1708786243476,-1954.0,0.00024192,2]
[315052166,1708786243485,-600.0,0.00024192,2]
[315052167,1708786243495,-1231.0,0.00024192,2]
[315052168,1708786243505,-277.0,0.00024192,2]
[315052169,1708786243514,-859.0,0.00024192,2]
[315052170,1708786243524,-1007.0,0.00024192,2]
[315052171,1708786243533,-430.0,0.00024192,2]
[315052172,1708786243543,-338.0,0.00024192,2]
[315052173,1708786243552,-302.0,0.00024192,2]
[315052174,1708786243561,-1138.0,0.00024192,2]
[315052175,1708786243570,-322.0,0.00024192,2]
[315052176,1708786243580,-2905.0,0.00024192,2]
[315052177,1708786243589,-150.0,0.00024192,2]
[315052178,1708786243598,-1453.0,0.00024192,2]
[315052179,1708786243607,-390.0,0.00024192,2]
[315052180,1708786243616,-2935.0,0.00024192,2]
[315052181,1708786243626,-6628.175,0.00024192,2]
[315052182,1708786243635,-150.0,0.00024192,2]
[315052184,1708786243644,-2295.0,0.00024192,2]
[315052195,1708786243797,-1004.134,0.00024192,2]
[315052196,1708786243817,-1405.423,0.00024192,2]
[315052197,1708786243827,-19898.0,0.00024192,2]
[315052198,1708786243836,-150.0,0.00024192,2]
[315052199,1708786243848,-162.22852879,0.00024208,2]
[315052200,1708786243857,-918.37,0.00024247,2]
[315052201,1708786243867,-6527.62801736,0.00024255,2]
[315052202,1708786243876,-154.55,0.00024275,2]
[315052203,1708786243886,-1589.28,0.00024384,2]
[315052204,1708786243895,-1944.77,0.00024384,2]
[315052205,1708786243904,-154.55,0.00024412,2]
[315052206,1708786243913,-162.22852879,0.00024499,2]
[315052207,1708786243923,-154.55,0.00024549,2]
[315052208,1708786243933,-200.0,0.00024589,2]
[315052209,1708786243944,-6527.62801736,0.0002461,2]
[315052210,1708786243953,-177.78,0.00024644,2]
[315052211,1708786243963,-2332.0,0.00024658,2]
[315052212,1708786243972,-250.0,0.00024658,2]
[315052213,1708786243982,-8747.75854026,0.00024678,2]
[315052214,1708786243991,-100000.00000001,0.00024679,2]
[315052215,1708786244000,-100000.0,0.0002468,2]
[315052216,1708786244011,-330399.23370706,0.00024682,2]
[315052217,1708786244021,-12530.93462389,0.00024684,2]
[315052218,1708786244030,-18938.10522742,0.00024685,2]
[315052219,1708786244039,-2737.09,0.00024685,2]
[315052220,1708786244049,-54122.81299693,0.00024685,2]
[315052221,1708786244058,-8573.33839578,0.00024686,2]
[315052222,1708786244067,-154.55,0.00024686,2]
[315052223,1708786244076,-423845.35270382,0.00024688,2]
[315052224,1708786244085,-200.0,0.00024689,2]
[315052225,1708786244094,-200.0,0.0002469,2]
[315052226,1708786244103,-800.0,0.0002469,2]
[315052227,1708786244112,-200.0,0.0002469,2]
[315052228,1708786244121,-500.0,0.0002469,2]
[315052229,1708786244130,-443.39866079,0.0002469,2]
[315052230,1708786244140,-82850.07633516,0.00024693,2]
[315052231,1708786244150,-1483.64999451,0.00024695,2]
[315052232,1708786244159,-1569.42740788,0.00024697,2]
[315052233,1708786244168,-133689.57389919,0.000247,2]
[315052234,1708786244196,-2421.8294101,0.000247,2]
[315052235,1708786244208,-3034.31321931,0.000247,2]
[315052236,1708786244219,-4626.48175662,0.000247,2]
[315052237,1708786244254,-263.07777719,0.000247,2]
[315052243,1708786244418,-2105.54443158,0.000247,2]
[315052244,1708786244427,-597.53,0.00024703,2]
[315052245,1708786244436,-280.50431174,0.00024708,2]
[315052246,1708786244446,-152.68,0.00024718,2]
[315052247,1708786244455,-162.22852879,0.00024789,2]
[315052248,1708786244467,-3469.06711246,0.00024789,2]
[315052249,1708786244476,-651.3988609,0.00024789,2]
[315052250,1708786244486,-3120.91134967,0.00024789,2]
[315052251,1708786244557,-2062.80148317,0.00024789,2]
[315052252,1708786244566,-255.53591434,0.00024789,2]
[315052253,1708786244575,-1901.77265159,0.00024789,2]
[315052254,1708786244584,-4455.41189917,0.00024789,2]
[315052255,1708786244593,-574.03301266,0.00024789,2]
[315052256,1708786244602,-415.8647126,0.00024789,2]
[315052257,1708786244611,-242208.09272889,0.000248,2]
[315052258,1708786244623,-629.64240114,0.000248,2]
[315052275,1708786246368,-1040.0,0.00024302,2]
[315052276,1708786246378,-29760.77541543,0.000248,2]
[315052277,1708786246387,-154.55,0.00024824,2]
[315052278,1708786246397,-2054.0,0.00024877,2]
[315052279,1708786246406,-4654.4836533,0.00024881,2]
[315052280,1708786246417,-4982.9842191,0.00024881,2]
[315052281,1708786246425,-8479.20671217,0.00024881,2]
[315052283,1708786247731,-3418.61647243,0.00024881,2]
[315052284,1708786247741,-47809.95233013,0.00024881,2]
[315052285,1708786264603,208.0,0.00021711,2]
[315052286,1708786315403,28567.44246167,6.94e-05,2]
[315052287,1708786326068,4878.42886225,0.00021711,2]
[315052288,1708786348079,4878.42886225,0.00021711,2]
[315052289,1708786368041,4878.42886225,0.00021711,2]
[315052290,1708786388048,4723.47445912,0.00021711,2]
[315052291,1708786393329,151.0,0.00025,7]
[315052292,1708786395949,151.0,0.00025,7]
[315052293,1708786396484,4738.40057521,0.0001305,2]
[315052294,1708786410067,151.0,0.00025,7]
[315052295,1708786422156,3690.9440422,0.0002,2]
[315052296,1708786428837,6160.80721672,0.000142,2]
[315052297,1708786429612,6653.0,0.0002,2]
[315052298,1708786450704,2433.73632619,0.0002,2]
[315052300,1708786466338,1404.81832917,0.00024788,9]
[315052301,1708786469873,151.0,0.00024889,7]
[315052303,1708786472875,151.0,0.00024889,7]
[315052304,1708786475007,151.0,0.00025,7]
[315052306,1708786490470,151.0,0.00024889,7]
[315052307,1708786490887,159.11958,0.00025,7]
[315052308,1708786495627,151.0,0.00024889,7]
[315052309,1708786525695,151.0,0.00024881,7]
[315052310,1708786526253,232.797688,0.00024889,7]
[315052311,1708786531250,151.0,0.00024881,7]
[315052312,1708786533207,151.0,0.00024881,7]
[315052313,1708786540513,151.0,0.00024881,7]
[315052314,1708786553368,158.807467,0.00024881,7]
[315052315,1708786590878,151.0,0.00024881,7]
[315052316,1708786594419,151.0,0.00024881,7]
[315052317,1708786594752,151.0,0.00024889,7]
[315052318,1708786595427,151.0,0.00025,7]
[315052319,1708786599545,151.0,0.00024881,7]
[315052320,1708786614291,1123.85466336,0.000247,9]
[315052321,1708786634966,151.0,0.00024881,7]
[315052322,1708786636914,163.156409,0.00024881,7]
[315052323,1708786650610,151.0,0.00024881,7]
[315052324,1708786651934,195.710498,0.00024889,7]
[315052325,1708786665754,521.17,0.00021494,2]
[315052326,1708786677278,151.0,0.00024881,7]
[315052327,1708786679177,151.0,0.00024889,7]
[315052328,1708786679503,248.45161,0.00025,7]
[315052329,1708786710503,151.767422,0.00024881,7]
[315052330,1708786742422,155.36092,0.00024881,7]
[315052331,1708786744484,151.0,0.00024881,7]
[315052333,1708786759796,899.08373068,0.000247,9]
[315052334,1708786769615,151.0,0.00024881,7]
[315052335,1708786769969,151.0,0.00024889,7]
[315052336,1708786770981,202.770146,0.00025,7]
[315052337,1708786783949,178.005477,0.00024881,7]
[315052338,1708786811501,750.0,0.000219,2]
[315052340,1708786817422,-999.999999,0.00038922,120]
[315052341,1708786817444,-242.67092834,0.00038922,90]
[315052342,1708786817466,-10321.36556585,0.00038922,30]
[315052343,1708786817489,-9515.44756271,0.00038922,10]
[315052344,1708786829600,151.0,0.00024881,7]
[315052345,1708786832526,157.009275,0.00024881,7]
[315052346,1708786879321,151.0,0.00024881,7]
[315052347,1708786906258,719.26698456,0.000247,9]
[315052348,1708786912243,151.0,0.00024881,7]
[315052349,1708786945330,151.0,0.00024881,7]
[315052350,1708786958258,151.0,0.00024881,7]
[315052351,1708786966599,151.0,0.00024881,7]
[315052352,1708786969859,301.996293,0.00024881,7]
[315052353,1708786983097,150.0,0.000238,10]
[315052354,1708787051600,575.41358764,0.000247,9]
[315052355,1708787147549,495.11,0.00020616,2]
[315052358,1708787164541,206.0,0.00022192,2]
[315052359,1708787197466,460.33087012,0.00024689,9]
[315052360,1708787257987,1000.0,0.00022401,2]
[315052361,1708787258510,500.0,0.00022401,2]
[315052363,1708787310680,1936.95,0.00022443,2]
[315052365,1708787337426,17592.46306516,0.00022353,2]
[315052366,1708787337447,6307.53693484,0.00022353,2]
[315052367,1708787346510,784.31,0.00022408,2]
[315052369,1708787373102,-1049.53926743,0.00022504,2]
[315052370,1708787373123,-1094.83,0.00022505,2]
[315052371,1708787373143,-155.0,0.00022515,2]
[315052372,1708787373164,-94.18065611,0.00022516,2]
[315052373,1708787373582,190.25254011,0.00022431,2]
[315052374,1708787422769,200.0,0.00022198,2]
[315052381,1708787431485,-213.11689176,0.0002252,2]
[315052382,1708787431495,-1846.55,0.00022521,2]
[315052383,1708787431505,-514.14,0.00022531,2]
[315052384,1708787431514,-190.25253998,0.00022555,2]
[315052385,1708787431523,-500.0,0.00022556,2]
[315052386,1708787431533,-164.37,0.00022558,2]
[315052387,1708787431542,-154.87056826,0.00022574,2]
[315052388,1708787431573,-4.49943174,0.00022574,2]
[315052389,1708787431583,-169.11,0.00022628,2]
[315052390,1708787431592,-190.25253998,0.00022679,2]
[315052391,1708787431602,-254.06723254,0.000227,2]
[315052392,1708787431613,-551.58556299,0.000227,2]
[315052393,1708787431624,-297.06685844,0.000227,2]
[315052394,1708787431633,-53.93434899,0.000227,2]
[315052395,1708787431702,-29730.68565101,0.000227,2]
[315052396,1708787431711,-499.99,0.000227,2]
[315052397,1708787431721,-704.59,0.000227,2]
[315052398,1708787431731,-190.25253998,0.00022803,2]
[315052399,1708787431740,-495.11,0.00022879,2]
[315052400,1708787431749,-1398.6295883,0.00022888,2]
[315052401,1708787431759,-190.25253998,0.00022927,2]
[315052402,1708787431767,-300.0,0.00022997,2]
[315052403,1708787431777,-150.0,0.00022997,2]
[315052404,1708787431786,-155.0,0.00022998,2]
[315052405,1708787431795,-4627.20381715,0.00022998,2]
[315052406,1708787431805,-155.0,0.00022998,2]
[315052407,1708787431814,-1049.53926743,0.00022998,2]
[315052408,1708787431823,-323.14568425,0.00022999,2]
[315052410,1708787431832,-56375.62105269,0.00023,2]
[315052411,1708787431846,-900.0,0.00023,2]
[315052414,1708787431857,-9909.8383545,0.00023,2]
[315052416,1708787431869,-1887.17581264,0.00023,2]
[315052417,1708787431881,-1158.43028326,0.00023,2]
[315052418,1708787431892,-1153.450029,0.00023,2]
[315052419,1708787437403,-420.87700859,0.00023,2]
[315052420,1708787437415,-3032.52,0.00023,2]
[315052421,1708787437427,-9893.66583282,0.00023,2]
[315052422,1708787437459,-1305.7,0.00023,2]
[315052423,1708787437522,-999.70773553,0.00023,2]
[315052424,1708787437534,-1932.79389901,0.00023,2]
[315052425,1708787437546,-393.64961353,0.00023,2]
[315052426,1708787437557,-11438.6949857,0.00023,2]
[315052427,1708787437569,-18598.43035417,0.00023,2]
[315052428,1708787437580,-6405.24511154,0.00023,2]
[315052429,1708787437596,-750.15053776,0.00023,2]
[315052430,1708787437613,-6377.11474651,0.00023,2]
[315052431,1708787437622,-150.1,0.00023,3]
[315052432,1708787437632,-320.64265555,0.00023,2]
[315052433,1708787437642,-190.25253998,0.00023052,2]
[315052434,1708787437651,-1427.0,0.00023054,2]
[315052435,1708787437661,-190.25253998,0.00023176,2]
[315052436,1708787437671,-167.84,0.00023267,2]
[315052437,1708787437683,-190.25253998,0.000233,2]
[315052438,1708787437693,-190.25253998,0.00023424,2]
[315052439,1708787437703,-166.15,0.00023472,2]
[315052440,1708787437714,-190.25253998,0.00023548,2]
[315052442,1708787437723,-779.41353259,0.0002363,2]
[315052444,1708787437736,-315.41646741,0.0002363,2]
[315052446,1708787437746,-83.95555014,0.00023672,2]
[315052449,1708787437762,-106.29698984,0.00023672,2]
[315052450,1708787437771,-164.37,0.00023686,2]
[315052452,1708787437781,-352.26794521,0.000237,2]
[315052456,1708787437813,-431.42301271,0.000237,2]
[315052458,1708787437822,-190.25253998,0.00023796,2]
[315052460,1708787437831,-2844.98473402,0.000238,2]
[315052462,1708787437844,-1018.91138684,0.000238,2]
[315052464,1708787437855,-2898.60583504,0.000238,2]
[315052469,1708787437888,-739.72299348,0.000238,2]
[315052472,1708787437900,-1788.25695,0.000238,2]
[315052474,1708787437912,-729.82228752,0.000238,2]
[315052476,1708787437924,-23548.2947941,0.000238,2]
[315052478,1708787437936,-51190.0,0.000238,2]
[315052737,1708787440450,-403.47012699,0.000238,2]
[315052748,1708787440546,-443.73665796,0.000238,2]
[315052750,1708787440557,-563.83878477,0.000238,2]
[315052753,1708787440573,-2588.875512,0.000238,2]
[315052755,1708787440584,-1928.64472612,0.000238,2]
[315052757,1708787440595,-154312.83521116,0.000238,2]
[315052759,1708787440606,-500.0,0.000238,2]
[315052762,1708787440615,-208.5464,0.000239,2]
[315052764,1708787440624,-190.25253998,0.0002392,2]
[315052766,1708787440634,-191.45310093,0.0002399,2]
[315052768,1708787440643,-1000.0,0.00023999,2]
[315052770,1708787440652,-92006.23238149,0.00024,2]
[315052772,1708787440663,-10982.95046058,0.00024,2]
[315052774,1708787440675,-455.119992,0.00024,2]
[315052777,1708787440695,-387.29801474,0.00024,2]
[315052780,1708787440710,-4794.38840387,0.00024,2]
[315052782,1708787440721,-62688.74818065,0.00024,2]
[315052784,1708787440732,-298905.4757762,0.00024,2]
[315052787,1708787440743,-630.17915886,0.00024,2]
[315052790,1708787440761,-2877.53569213,0.00024,2]
[315052792,1708787440776,-1179.98741383,0.00024,2]
[315052794,1708787440787,-610.95493746,0.00024,2]
[315052817,1708787440984,-6056.28744947,0.00024,2]
[315052819,1708787440995,-190.25253998,0.00024044,2]
[315052821,1708787441005,-535.01415868,0.00024074,2]
[315052823,1708787441014,-11045.69,0.00024174,2]
[315052825,1708787441023,-4635.73,0.00024174,2]
[315052827,1708787441032,-150.0,0.00024178,2]
[315052829,1708787441041,-890.33549201,0.0002425,2]
[315052831,1708787441050,-783.69095787,0.00024286,2]
[315052833,1708787441059,-2696.0,0.000243,2]
[315052835,1708787441068,-955.0,0.000243,2]
[315052837,1708787441077,-1231.0,0.000243,2]
[315052839,1708787441086,-217.0,0.000243,2]
[315052841,1708787441094,-163.402,0.000243,2]
[315052843,1708787441104,-1954.0,0.000243,2]
[315052845,1708787441112,-1257.0,0.000243,2]
[315052847,1708787441122,-859.0,0.000243,2]
[315052849,1708787441131,-430.0,0.000243,2]
[315052851,1708787441141,-1007.0,0.000243,2]
[315052853,1708787441150,-227.802,0.000243,2]
[315052855,1708787441159,-338.0,0.000243,2]
[315052857,1708787441169,-2582.274,0.000243,2]
[315052859,1708787441180,-322.0,0.000243,2]
[315052861,1708787441189,-302.0,0.000243,2]
[315052863,1708787441204,-150.0,0.000243,2]
[315052865,1708787441213,-1453.0,0.000243,2]
[315052867,1708787441223,-2935.0,0.00024362,2]
[315052869,1708787441232,-2295.0,0.00024362,2]
[315052871,1708787441242,-8185.0,0.00024362,2]
[315052873,1708787441251,-19898.0,0.00024362,2]
[315052875,1708787441259,-1040.0,0.00024362,2]
[315052877,1708787441269,-1714.57,0.00024384,2]
[315052879,1708787441279,-1816.98,0.00024384,2]
[315052881,1708787441289,-413.13,0.00024384,2]
[315052883,1708787441299,-150.0,0.000244,2]
[315052885,1708787441308,-150.0,0.000244,2]
[315052887,1708787441317,-150.0,0.000244,2]
[315052889,1708787441327,-150.0,0.000244,2]
[315052891,1708787441336,-244.198,0.000244,2]
[315052893,1708787441345,-150.0,0.000244,2]
[315052895,1708787441354,-512.16,0.0002456,2]
[315052897,1708787441363,-200.0,0.0002462,2]
[315052898,1708787441373,-250.0,0.00024658,2]
[315052899,1708787441382,-3729.6065865,0.00024685,2]
[315052900,1708787441392,-200.0,0.00024686,2]
[315052901,1708787441401,-800.0,0.00024686,2]
[315052902,1708787441410,-200.0,0.00024686,2]
[315052903,1708787441420,-500.0,0.00024686,2]
[315052904,1708787441431,-200.0,0.00024686,2]
[315052917,1708787441577,-17855.65571053,0.00024686,2]
[315052920,1708787441595,-3870.3042,0.00024686,2]
[315053011,1708787442421,-9825.52888602,0.00024686,2]
[315053018,1708787442481,-1519.95683632,0.00024686,2]
[315053019,1708787442492,-11676.53441415,0.00024686,2]
[315053020,1708787442504,-1902.62141154,0.00024686,2]
[315053021,1708787442515,-480.03533669,0.00024686,2]
[315053022,1708787442526,-1118.38400007,0.00024686,2]
[315053023,1708787442538,-1050.87873394,0.00024686,2]
[315053024,1708787442549,-530.05992504,0.00024686,2]
[315053025,1708787442564,-18320.01837579,0.00024686,2]
[315053026,1708787442598,-50655.69354287,0.00024686,2]
[315053028,1708787442608,-5467.70840746,0.00024689,2]
[315053030,1708787442617,-168.30258706,0.00024689,2]
[315053032,1708787442626,-5000.0,0.00024699,2]
[315053034,1708787442635,-656.71191379,0.000247,2]
[315053035,1708787442644,-153.81127356,0.000247,2]
[315053037,1708787442654,-1094.83,0.00024755,2]
[315053039,1708787442663,-93589.51028456,0.00024788,4]
[315053040,1708787442675,-249952.1063394,0.00024788,4]
[315053041,1708787442690,-24268.21076552,0.00024788,4]
[315053042,1708787442701,-10093.59044113,0.00024788,4]
[315053043,1708787442713,-14068.61606191,0.00024788,4]
[315053044,1708787442724,-16678.04,0.00024788,4]
[315053045,1708787442755,-7261.82591215,0.00024788,4]
[315053046,1708787442767,-3065.67686043,0.00024788,4]
[315053048,1708787442778,-3582.70593536,0.00024788,4]
[315053049,1708787442789,-765.964,0.00024788,4]
[315053066,1708787445551,-304.30293679,0.00023999,2]
[315053068,1708787445561,-190.25253998,0.00024168,2]
[315053070,1708787445570,-16299.80075525,0.00024788,4]
[315053071,1708787445664,-5098.8,0.00024788,4]
[315053072,1708787445676,-437196.96713684,0.00024788,4]
[315053073,1708787445753,-26840.84367112,0.00024788,4]
[315053074,1708787445764,-51147.15735864,0.00024788,4]
[315053075,1708787445810,-155.0,0.00023998,2]
[315053076,1708787445819,-922.98366841,0.00024788,4]
[315053079,1708787492659,368.26469608,0.00024789,9]
[315053080,1708787604467,445.59,0.00021843,2]
[315053081,1708787638806,294.61175688,0.00024789,9]
[315053082,1708787659847,61999.99999901,2.9e-05,120]
[315053083,1708787784371,235.68940548,0.00024789,9]
[315053085,1708787917230,239.0,0.00020772,2]
[315053086,1708787922083,179.0,0.00020772,2]
[315053087,1708787933335,188.5515244,0.00024769,9]
[315053088,1708788073291,188.54114882,0.00022486,2]
[315053091,1708788078425,150.84121952,0.00024772,9]
[315053092,1708788094817,423.31,0.00021246,2]
[315053093,1708788111460,184.98362258,0.00022483,2]
[315053094,1708788214424,206.0,0.000221,2]
[315053095,1708788311456,750.0,0.000219,2]
[315053096,1708788343982,157.93441839,0.00022473,2]
[315053098,1708788511935,6604.0,0.00027,14]
[315053100,1708788566053,299.99,0.00022999,7]
[315053116,1708788631737,-213.11689176,0.00022551,2]
[315053117,1708788631752,-155.0,0.00022552,2]
[315053118,1708788631768,-1049.53926743,0.00022552,2]
[315053119,1708788631784,-638.0,0.00022552,2]
[315053120,1708788631800,-800.20810553,0.00022553,2]
[315053121,1708788631816,-765.12448514,0.00022559,2]
[315053122,1708788631832,-157.93441838,0.00022856,2]
[315053123,1708788631859,-437.93,0.00022983,2]
[315053124,1708788631878,-200.0,0.00022998,2]
[315053125,1708788631896,-150.0,0.00022999,2]
[315053126,1708788631914,-1809.77,0.00023,2]
[315053127,1708788631931,-143.75183176,0.00023,2]
[315053128,1708788631959,-1645.54816824,0.00023,2]
[315053129,1708788631974,-1304.45183176,0.00023,2]
[315053133,1708788632022,-340.4359208,0.00023,2]
[315053136,1708788632048,-200.84224744,0.00023,2]
[315053139,1708788632064,-1789.75,0.00023,2]
[315053141,1708788632085,-1776.44,0.00023,2]
[315053142,1708788632102,-1810.93,0.00023,2]
[315053143,1708788632118,-250.0,0.00023004,2]
[315053144,1708788632133,-392.15,0.00023009,2]
[315053145,1708788632149,-200.0,0.00023036,2]
[315053146,1708788632165,-800.0,0.00023088,2]
[315053147,1708788632181,-484.27,0.00023103,2]
[315053148,1708788632196,-154.55,0.00023142,2]